[Event "1st SOA-GM Festival 2024"]
[Site "Bhubaneswar"]
[Date "2024.02.01"]
[Round "2.6"]
[White "Sathvik Adiga"]
[Black "Tahbaz, Arash"]
[Result "0-1"]
[WhiteElo "2142"]
[BlackElo "2425"]
[PlyCount "88"]
[EventDate "2024.02.01"]
[EventType "swiss"]
[EventCountry "IND"]
[TimeControl "5400+30"]

1. e4 {[%emt 0:00:08]} c5 {[%emt 0:01:17]} 2. Nf3 {[%emt 0:00:06]} e6 {[%emt 0:00:08]} 3. d4 {[%emt 0:00:02]} cxd4 {[%emt 0:00:06]} 4. Nxd4 {[%emt 0:00:02]} Nc6 {[%emt 0:00:09]} 5. Bf4 {[%emt 0:00:04]} d6 {[%emt 0:07:32]} 6. Nxc6 {[%emt 0:00:06]} bxc6 {[%emt 0:00:05]} 7. Bd3 {[%emt 0:00:08]} e5 {[%emt 0:02:29]} 8. Be3 {[%emt 0:00:04]} Nf6 {[%emt 0:00:27]} 9. c4 {[%emt 0:01:51]} Ng4 {[%emt 0:14:28]} 10. Bd2 {[%emt 0:00:25]} Be7 {[%emt 0:07:23]} 11. O-O {[%emt 0:01:01]} O-O {[%emt 0:00:17]} 12. Nc3 {[%emt 0:02:13]} Be6 {[%emt 0:02:57]} 13. h3 {[%emt 0:00:49]} Nf6 {[%emt 0:00:05]} 14. Qe2 {[%emt 0:03:33]} g6 {[%emt 0:03:25]} 15. Rfd1 {[%emt 0:03:48]} Nh5 {[%emt 0:02:12]} 16. Bh6 {[%emt 0:04:47]} Re8 {[%emt 0:03:39]} 17. Qd2 {[%emt 0:03:16]} g5 {[%emt 0:06:17]} 18. h4 {[%emt 0:12:02]} Nf4 {[%emt 0:12:11]} 19. Bf1 {[%emt 0:14:19]} Kh8 {[%emt 0:03:00]} 20. g3 {[%emt 0:02:38]} Rg8 {[%emt 0:00:19]} 21. Bxg5 {[%emt 0:10:06]} Bxg5 {[%emt 0:00:15]} 22. hxg5 {[%emt 0:00:05]} Qxg5 {[%emt 0:06:24]} 23. Qxd6 {[%emt 0:01:43]} h5 {[%emt 0:07:56]} 24. Re1 {[%emt 0:11:29]} h4 {[%emt 0:01:40]} 25. Re3 {[%emt 0:00:12]} hxg3 {[%emt 0:01:44]} 26. Rxg3 {[%emt 0:00:02]} Qh4 {[%emt 0:00:17]} 27. Qd2 {[%emt 0:05:19]} Rxg3+ {[%emt 0:00:09]} 28. fxg3 {[%emt 0:00:05]} Qxg3+ {[%emt 0:00:16]} 29. Bg2 {[%emt 0:00:12]} Rg8 {[%emt 0:00:38]} 30. Rf1 {[%emt 0:00:22]} Qxg2+ {[%emt 0:00:27]} 31. Qxg2 {[%emt 0:00:07]} Rxg2+ {[%emt 0:00:04]} 32. Kh1 {[%emt 0:00:01]} Rxb2 {[%emt 0:00:06]} 33. Rc1 {[%emt 0:00:19]} Ne2 {[%emt 0:00:06]} 34. Nxe2 {[%emt 0:00:12]} Rxe2 {[%emt 0:00:03]} 35. c5 {[%emt 0:00:41]} Rxe4 {[%emt 0:00:07]} 36. Rb1 {[%emt 0:00:09]} Rc4 {[%emt 0:00:06]} 37. Rb7 {[%emt 0:00:11]} a5 {[%emt 0:00:05]} 38. Kg2 {[%emt 0:00:08]} Rxc5 {[%emt 0:00:05]} 39. Kf3 {[%emt 0:00:05]} Bxa2 {[%emt 0:00:03]} 40. Kg4 {[%emt 0:00:12]} Kg7 {[%emt 0:00:04]} 41. Kg5 {[%emt 0:00:13]} Be6 {[%emt 0:00:12]} 42. Rb2 {[%emt 0:00:06]} f6+ {[%emt 0:00:28]} 43. Kh4 {[%emt 0:00:11]} Rc4+ {[%emt 0:00:04]} 44. Kg3 {[%emt 0:00:08]} a4 {[%emt 0:00:03]} 0-1

[Event "1st SOA-GM Festival 2024"]
[Site "Bhubaneswar"]
[Date "2024.02.01"]
[Round "2.7"]
[White "Adireddy Arjun"]
[Black "Aquino, Jethro Dino"]
[Result "1/2-1/2"]
[WhiteElo "2415"]
[BlackElo "2166"]
[PlyCount "100"]
[EventDate "2024.02.01"]
[EventType "swiss"]
[EventCountry "IND"]
[TimeControl "5400+30"]

1. e4 {[%emt 0:00:04]} c5 {[%emt 0:00:38]} 2. Nf3 {[%emt 0:00:07]} e6 {[%emt 0:00:15]} 3. d4 {[%emt 0:00:07]} cxd4 {[%emt 0:00:07]} 4. Nxd4 {[%emt 0:00:05]} Nc6 {[%emt 0:00:30]} 5. Nc3 {[%emt 0:00:09]} Qc7 {[%emt 0:00:08]} 6. Be3 {[%emt 0:00:33]} a6 {[%emt 0:00:34]} 7. Qd2 {[%emt 0:04:30]} Nf6 {[%emt 0:01:06]} 8. f3 {[%emt 0:00:20]} Be7 {[%emt 0:01:21]} 9. g4 {[%emt 0:07:42]} b5 {[%emt 0:00:55]} 10. Be2 {[%emt 0:02:10]} Nxd4 {[%emt 0:05:33]} 11. Bxd4 {[%emt 0:00:19]} Bb7 {[%emt 0:00:22]} 12. O-O-O {[%emt 0:18:22]} O-O {[%emt 0:12:31]} 13. Kb1 {[%emt 0:19:48]} Rac8 {[%emt 0:07:46]} 14. g5 {[%emt 0:06:04]} Nh5 {[%emt 0:00:13]} 15. Be3 {[%emt 0:00:56]} Rfd8 {[%emt 0:06:58]} 16. Rhf1 {[%emt 0:09:44]} d5 {[%emt 0:04:05]} 17. exd5 {[%emt 0:00:12]} b4 {[%emt 0:03:11]} 18. Na4 {[%emt 0:00:40]} Bxd5 {[%emt 0:05:52]} 19. Bd3 {[%emt 0:03:06]} Rb8 {[%emt 0:01:02]} 20. Qf2 {[%emt 0:01:23]} Qc6 {[%emt 0:07:29]} 21. Nb6 {[%emt 0:06:42]} Nf4 {[%emt 0:00:06]} 22. Bxf4 {[%emt 0:00:58]} Rxb6 {[%emt 0:00:15]} 23. Be5 {[%emt 0:01:11]} g6 {[%emt 0:01:57]} 24. h4 {[%emt 0:02:08]} Rb7 {[%emt 0:12:27]} 25. b3 {[%emt 0:00:35]} a5 {[%emt 0:07:08]} 26. Bb2 {[%emt 0:04:34]} Bc5 {[%emt 0:00:06]} 27. Qe2 {[%emt 0:00:32]} Bd6 {[%emt 0:01:10]} 28. h5 {[%emt 0:00:21]} a4 {[%emt 0:00:58]} 29. Rh1 {[%emt 0:06:36]} e5 {[%emt 0:01:10]} 30. Ba6 {[%emt 0:04:41]} axb3 {[%emt 0:13:57]} 31. axb3 {[%emt 0:00:18]} Rb6 {[%emt 0:05:06]} 32. hxg6 {[%emt 0:00:07]} Rxa6 {[%emt 0:00:16]} 33. gxh7+ {[%emt 0:00:13]} Kh8 {[%emt 0:00:23]} 34. Bxe5+ {[%emt 0:01:41]} Bxe5 {[%emt 0:00:05]} 35. Qxe5+ {[%emt 0:00:02]} f6 {[%emt 0:00:06]} 36. gxf6 {[%emt 0:00:23]} Qc3 {[%emt 0:01:03]} 37. Qxc3 {[%emt 0:00:41]} bxc3 {[%emt 0:00:04]} 38. Rh4 {[%emt 0:00:53]} Rxf6 {[%emt 0:01:42]} 39. Rhd4 {[%emt 0:00:28]} Rfd6 {[%emt 0:00:10]} 40. R1d3 {[%emt 0:00:32]} Kxh7 {[%emt 0:00:26]} 41. Rxc3 {[%emt 0:00:13]} Kg6 {[%emt 0:00:26]} 42. Rcd3 {[%emt 0:00:28]} R6d7 {[%emt 0:00:30]} 43. f4 {[%emt 0:00:50]} Kf5 {[%emt 0:00:23]} 44. Re3 {[%emt 0:00:30]} Bxb3 {[%emt 0:01:08]} 45. Re5+ {[%emt 0:00:28]} Kf6 {[%emt 0:00:05]} 46. Rxd7 {[%emt 0:00:05]} Bxc2+ {[%emt 0:00:03]} 47. Kxc2 {[%emt 0:00:05]} Rxd7 {[%emt 0:00:03]} 48. Re2 {[%emt 0:00:11]} Kf5 {[%emt 0:00:05]} 49. Rd2 {[%emt 0:00:03]} Rxd2+ {[%emt 0:00:05]} 50. Kxd2 {[%emt 0:00:03]} Kxf4 {[%emt 0:00:04]} 1/2-1/2

[Event "1st SOA-GM Festival 2024"]
[Site "Bhubaneswar"]
[Date "2024.02.01"]
[Round "2.8"]
[White "Salonika, Saina"]
[Black "Namitbir Singh Walia"]
[Result "1/2-1/2"]
[WhiteElo "2113"]
[BlackElo "2408"]
[PlyCount "67"]
[EventDate "2024.02.01"]
[EventType "swiss"]
[EventCountry "IND"]
[TimeControl "5400+30"]

1. e4 {[%emt 0:00:08]} c6 {[%emt 0:00:07]} 2. d4 {[%emt 0:00:07]} d5 {[%emt 0:00:06]} 3. Nc3 {[%emt 0:00:07]} dxe4 {[%emt 0:00:10]} 4. Nxe4 {[%emt 0:00:05]} Nf6 {[%emt 0:00:10]} 5. Nxf6+ {[%emt 0:00:05]} exf6 {[%emt 0:00:08]} 6. c3 {[%emt 0:00:03]} Bd6 {[%emt 0:00:10]} 7. Bd3 {[%emt 0:00:07]} O-O {[%emt 0:00:12]} 8. Qc2 {[%emt 0:00:08]} Re8+ {[%emt 0:00:18]} 9. Ne2 {[%emt 0:00:06]} h5 {[%emt 0:00:23]} 10. Be3 {[%emt 0:00:08]} Nd7 {[%emt 0:00:28]} 11. O-O-O {[%emt 0:00:22]} Nf8 {[%emt 0:00:26]} 12. Kb1 {[%emt 0:00:04]} Be6 {[%emt 0:00:14]} 13. c4 {[%emt 0:00:16]} Rc8 {[%emt 0:00:44]} 14. a3 {[%emt 0:08:07]} Ng6 {[%emt 0:13:07]} 15. Ng3 {[%emt 0:19:29]} b5 {[%emt 0:22:01]} 16. Nxh5 {[%emt 0:07:38]} bxc4 {[%emt 0:01:35]} 17. Bxc4 {[%emt 0:00:30]} Rb8 {[%emt 0:18:42]} 18. Ka2 {[%emt 0:29:59]} Qa5 {[%emt 0:05:44]} 19. Bxe6 {[%emt 0:02:41]} Rxe6 {[%emt 0:01:11]} 20. d5 {[%emt 0:03:14]} cxd5 {[%emt 0:02:55]} 21. Bd4 {[%emt 0:00:10]} Be5 {[%emt 0:03:40]} 22. Rd3 {[%emt 0:02:53]} Qb5 {[%emt 0:10:03]} 23. Rc1 {[%emt 0:13:40]} Rc6 {[%emt 0:13:21]} 24. Qxc6 {[%emt 0:00:11]} Qxd3 {[%emt 0:00:03]} 25. Bxe5 {[%emt 0:00:16]} Qb3+ {[%emt 0:00:38]} 26. Ka1 {[%emt 0:00:28]} fxe5 {[%emt 0:01:05]} 27. Qc2 {[%emt 0:05:15]} Qb5 {[%emt 0:00:25]} 28. Rd1 {[%emt 0:00:42]} Ne7 {[%emt 0:02:49]} 29. Ng3 {[%emt 0:02:22]} Nc6 {[%emt 0:01:48]} 30. Nf5 {[%emt 0:00:21]} g6 {[%emt 0:01:30]} 31. Nd6 {[%emt 0:01:00]} Qb6 {[%emt 0:00:45]} 32. Rxd5 {[%emt 0:00:14]} Nd4 {[%emt 0:00:23]} 33. Qc3 {[%emt 0:00:17]} a5 {[%emt 0:01:02]} 34. Nc4 {[%emt 0:06:17]} 1/2-1/2

[Event "1st SOA-GM Festival 2024"]
[Site "Bhubaneswar"]
[Date "2024.02.01"]
[Round "2.9"]
[White "Panda Sambit"]
[Black "Dhananjay S"]
[Result "1-0"]
[WhiteElo "2404"]
[BlackElo "2151"]
[PlyCount "94"]
[EventDate "2024.02.01"]
[EventType "swiss"]
[EventCountry "IND"]
[TimeControl "5400+30"]

1. d4 {[%emt 0:01:00]} Nf6 {[%emt 0:00:43]} 2. c4 {[%emt 0:00:57]} e6 {[%emt 0:00:04]} 3. Nf3 {[%emt 0:00:11]} b6 {[%emt 0:00:14]} 4. g3 {[%emt 0:02:47]} Bb7 {[%emt 0:00:49]} 5. Bg2 {[%emt 0:00:09]} g6 {[%emt 0:00:37]} 6. O-O {[%emt 0:08:55]} Bg7 {[%emt 0:00:04]} 7. Bg5 {[%emt 0:06:15]} h6 {[%emt 0:01:09]} 8. Bxf6 {[%emt 0:02:20]} Qxf6 {[%emt 0:00:12]} 9. Nc3 {[%emt 0:00:06]} O-O {[%emt 0:00:37]} 10. e4 {[%emt 0:02:37]} d6 {[%emt 0:02:01]} 11. Qe2 {[%emt 0:01:10]} Nd7 {[%emt 0:02:49]} 12. Rad1 {[%emt 0:03:18]} Qe7 {[%emt 0:01:55]} 13. Rfe1 {[%emt 0:01:40]} c5 {[%emt 0:03:44]} 14. Qd2 {[%emt 0:00:57]} cxd4 {[%emt 0:04:06]} 15. Nxd4 {[%emt 0:00:05]} a6 {[%emt 0:02:02]} 16. Nde2 {[%emt 0:21:19]} Ne5 {[%emt 0:00:38]} 17. b3 {[%emt 0:00:03]} Rfd8 {[%emt 0:00:42]} 18. Nd4 {[%emt 0:15:22]} Qc7 {[%emt 0:04:38]} 19. f4 {[%emt 0:06:07]} Nc6 {[%emt 0:00:30]} 20. Nxc6 {[%emt 0:03:26]} Bxc6 {[%emt 0:00:12]} 21. a4 {[%emt 0:01:28]} Rab8 {[%emt 0:06:35]} 22. Re3 {[%emt 0:07:32]} b5 {[%emt 0:04:12]} 23. axb5 {[%emt 0:00:10]} axb5 {[%emt 0:00:03]} 24. Rd3 {[%emt 0:00:16]} bxc4 {[%emt 0:01:05]} 25. bxc4 {[%emt 0:00:01]} Qb6+ {[%emt 0:12:02]} 26. Kh1 {[%emt 0:01:19]} Qc5 {[%emt 0:01:09]} 27. Rc1 {[%emt 0:09:32]} Rdc8 {[%emt 0:04:28]} 28. Nd1 {[%emt 0:00:45]} Bf8 {[%emt 0:06:27]} 29. Ne3 {[%emt 0:00:32]} h5 {[%emt 0:00:53]} 30. h4 {[%emt 0:03:28]} Qb6 {[%emt 0:00:31]} 31. f5 {[%emt 0:00:54]} Qc5 {[%emt 0:02:25]} 32. Nd5 {[%emt 0:01:08]} Bxd5 {[%emt 0:13:24]} 33. fxg6 {[%emt 0:00:08]} Ba8 {[%emt 0:00:15]} 34. gxf7+ {[%emt 0:00:10]} Kh8 {[%emt 0:00:05]} 35. Rd5 {[%emt 0:00:53]} exd5 {[%emt 0:10:52]} 36. Qg5 {[%emt 0:00:05]} Kh7 {[%emt 0:00:15]} 37. Rf1 {[%emt 0:01:16]} Qd4 {[%emt 0:09:23]} 38. Qg8+ {[%emt 0:00:09]} Kh6 {[%emt 0:00:06]} 39. Qg5+ {[%emt 0:00:06]} Kh7 {[%emt 0:00:04]} 40. Qxh5+ {[%emt 0:01:15]} Bh6 {[%emt 0:00:57]} 41. Qf5+ {[%emt 0:00:31]} Kh8 {[%emt 0:00:40]} 42. exd5 {[%emt 0:00:32]} Qg7 {[%emt 0:00:30]} 43. Qe6 {[%emt 0:00:34]} Rf8 {[%emt 0:05:28]} 44. Rf6 {[%emt 0:00:15]} Be3 {[%emt 0:00:32]} 45. Rf5 {[%emt 0:01:17]} Rb1+ {[%emt 0:01:56]} 46. Kh2 {[%emt 0:00:00]} Qg4 {[%emt 0:00:49]} 47. Qf6+ {[%emt 0:00:00]} Kh7 {[%emt 0:00:12]} 1-0

[Event "1st SOA-GM Festival 2024"]
[Site "Bhubaneswar"]
[Date "2024.02.01"]
[Round "2.10"]
[White "Vrashank Chouhan"]
[Black "Ritviz, Parab"]
[Result "1/2-1/2"]
[WhiteElo "2046"]
[BlackElo "2391"]
[PlyCount "80"]
[EventDate "2024.02.01"]
[EventType "swiss"]
[EventCountry "IND"]
[TimeControl "5400+30"]

1. d4 {[%emt 0:01:07]} g6 {[%emt 0:00:43]} 2. c4 {[%emt 0:02:20]} d6 {[%emt 0:02:59]} 3. Nc3 {[%emt 0:00:07]} Bg7 {[%emt 0:00:22]} 4. e4 {[%emt 0:00:07]} Nd7 {[%emt 0:03:44]} 5. Be3 {[%emt 0:05:24]} e5 {[%emt 0:00:53]} 6. d5 {[%emt 0:00:23]} Ne7 {[%emt 0:02:04]} 7. g4 {[%emt 0:03:54]} h5 {[%emt 0:11:37]} 8. g5 {[%emt 0:11:13]} a5 {[%emt 0:05:48]} 9. h4 {[%emt 0:01:02]} Nc5 {[%emt 0:01:55]} 10. f3 {[%emt 0:04:40]} O-O {[%emt 0:01:02]} 11. Nh3 {[%emt 0:02:55]} Bd7 {[%emt 0:14:38]} 12. Qd2 {[%emt 0:05:49]} Re8 {[%emt 0:19:00]} 13. Nf2 {[%emt 0:04:32]} c6 {[%emt 0:05:56]} 14. Rc1 {[%emt 0:05:23]} b6 {[%emt 0:06:00]} 15. Nd3 {[%emt 0:05:05]} Qb8 {[%emt 0:08:52]} 16. Kf2 {[%emt 0:05:33]} Rf8 {[%emt 0:04:25]} 17. Be2 {[%emt 0:01:43]} Kh7 {[%emt 0:03:15]} 18. Kg2 {[%emt 0:02:36]} Qe8 {[%emt 0:04:06]} 19. b3 {[%emt 0:03:58]} Rd8 {[%emt 0:02:02]} 20. Rb1 {[%emt 0:03:35]} Nxd3 {[%emt 0:00:34]} 21. Bxd3 {[%emt 0:01:29]} c5 {[%emt 0:00:02]} 22. a3 {[%emt 0:01:46]} f5 {[%emt 0:00:25]} 23. gxf6 {[%emt 0:05:37]} Bxf6 {[%emt 0:00:01]} 24. Rbg1 {[%emt 0:00:59]} Qf7 {[%emt 0:01:32]} 25. Kf2 {[%emt 0:03:50]} Ng8 {[%emt 0:00:29]} 26. Rg3 {[%emt 0:01:38]} Bg7 {[%emt 0:00:31]} 27. Ke1 {[%emt 0:02:49]} Bh6 {[%emt 0:00:17]} 28. Bxh6 {[%emt 0:01:04]} Nxh6 {[%emt 0:00:02]} 29. Ne2 {[%emt 0:00:24]} Qe7 {[%emt 0:00:30]} 30. Kd1 {[%emt 0:02:34]} Rf6 {[%emt 0:00:07]} 31. a4 {[%emt 0:08:05]} Rdf8 {[%emt 0:00:07]} 32. Ng1 {[%emt 0:00:06]} Rf4 {[%emt 0:00:54]} 33. Qh2 {[%emt 0:01:30]} Qf6 {[%emt 0:01:31]} 34. Be2 {[%emt 0:00:07]} Rf7 {[%emt 0:00:34]} 35. Nh3 {[%emt 0:00:49]} Bxh3 {[%emt 0:00:28]} 36. Qxh3 {[%emt 0:00:06]} Qe7 {[%emt 0:00:33]} 37. Rg5 {[%emt 0:00:55]} Rg7 {[%emt 0:00:18]} 38. Rg3 {[%emt 0:00:59]} Rgf7 {[%emt 0:00:22]} 39. Rg5 {[%emt 0:00:06]} Rg7 {[%emt 0:00:09]} 40. Rg3 {[%emt 0:00:04]} Rgf7 {[%emt 0:01:08]} 1/2-1/2

[Event "1st SOA-GM Festival 2024"]
[Site "Bhubaneswar"]
[Date "2024.02.01"]
[Round "2.11"]
[White "Audi Ameya"]
[Black "Sobh, Amrou"]
[Result "1-0"]
[WhiteElo "2385"]
[BlackElo "2117"]
[PlyCount "67"]
[EventDate "2024.02.01"]
[EventType "swiss"]
[EventCountry "IND"]
[TimeControl "5400+30"]

1. e4 {[%emt 0:00:14]} c5 {[%emt 0:00:05]} 2. Nf3 {[%emt 0:00:13]} e6 {[%emt 0:00:13]} 3. d4 {[%emt 0:00:11]} cxd4 {[%emt 0:00:08]} 4. Nxd4 {[%emt 0:00:05]} Nf6 {[%emt 0:00:08]} 5. Nc3 {[%emt 0:00:06]} Nc6 {[%emt 0:00:11]} 6. Ndb5 {[%emt 0:01:18]} Bc5 {[%emt 0:01:42]} 7. Bf4 {[%emt 0:04:21]} O-O {[%emt 0:00:17]} 8. Bc7 {[%emt 0:00:15]} Qe7 {[%emt 0:00:27]} 9. Bd6 {[%emt 0:00:10]} Bxd6 {[%emt 0:00:20]} 10. Qxd6 {[%emt 0:00:05]} Ne8 {[%emt 0:01:11]} 11. Qxe7 {[%emt 0:00:41]} Nxe7 {[%emt 0:00:02]} 12. O-O-O {[%emt 0:00:26]} f5 {[%emt 0:00:08]} 13. Nd6 {[%emt 0:09:24]} Nxd6 {[%emt 0:00:45]} 14. Rxd6 {[%emt 0:00:06]} fxe4 {[%emt 0:00:11]} 15. Nxe4 {[%emt 0:00:18]} Nf5 {[%emt 0:00:22]} 16. Rd2 {[%emt 0:00:13]} d5 {[%emt 0:00:10]} 17. Ng5 {[%emt 0:00:56]} h6 {[%emt 0:02:44]} 18. Nf3 {[%emt 0:00:22]} Bd7 {[%emt 0:01:14]} 19. Ne5 {[%emt 0:04:30]} Bc6 {[%emt 0:00:26]} 20. Bd3 {[%emt 0:02:58]} Nh4 {[%emt 0:00:51]} 21. f4 {[%emt 1:14:08]} g5 {[%emt 0:01:11]} 22. Re1 {[%emt 0:00:00]} Rae8 {[%emt 0:03:53]} 23. fxg5 {[%emt 0:00:00]} hxg5 {[%emt 0:00:24]} 24. Rde2 {[%emt 0:00:00]} Rf6 {[%emt 0:25:14]} 25. g3 {[%emt 0:00:00]} Nf5 {[%emt 0:03:51]} 26. Ng4 {[%emt 0:00:00]} Rff8 {[%emt 0:06:30]} 27. Rxe6 {[%emt 0:00:00]} Ng7 {[%emt 0:02:06]} 28. Rxe8 {[%emt 0:00:00]} Bxe8 {[%emt 0:02:16]} 29. Re5 {[%emt 0:00:00]} Bc6 {[%emt 0:01:23]} 30. Rxg5 {[%emt 0:00:00]} Kh8 {[%emt 0:01:51]} 31. h4 {[%emt 0:00:00]} Rf3 {[%emt 0:01:12]} 32. Ne5 {[%emt 0:00:00]} Re3 {[%emt 0:00:56]} 33. Nf7+ {[%emt 0:00:00]} Kg8 {[%emt 0:00:55]} 34. Nh6+ {[%emt 0:00:00]} 1-0

[Event "1st SOA-GM Festival 2024"]
[Site "Bhubaneswar"]
[Date "2024.02.01"]
[Round "2.12"]
[White "Tologon tegin, Semetei"]
[Black "Vignesh Advaith Vemula"]
[Result "0-1"]
[WhiteElo "2384"]
[BlackElo "2028"]
[PlyCount "88"]
[EventDate "2024.02.01"]
[EventType "swiss"]
[EventCountry "IND"]
[TimeControl "5400+30"]

1. g3 {[%emt 0:00:01]} d5 {[%emt 0:00:30]} 2. Bg2 {[%emt 0:00:06]} Nf6 {[%emt 0:00:07]} 3. d3 {[%emt 0:00:06]} e6 {[%emt 0:03:18]} 4. Nd2 {[%emt 0:00:34]} Be7 {[%emt 0:00:44]} 5. Ngf3 {[%emt 0:01:40]} O-O {[%emt 0:00:17]} 6. O-O {[%emt 0:00:10]} c5 {[%emt 0:00:04]} 7. e4 {[%emt 0:00:03]} Nc6 {[%emt 0:00:10]} 8. Re1 {[%emt 0:00:06]} b5 {[%emt 0:02:12]} 9. e5 {[%emt 0:00:09]} Nd7 {[%emt 0:01:06]} 10. Nf1 {[%emt 0:00:04]} a5 {[%emt 0:02:00]} 11. h4 {[%emt 0:00:13]} b4 {[%emt 0:04:37]} 12. h5 {[%emt 0:03:00]} h6 {[%emt 0:04:00]} 13. N1h2 {[%emt 0:28:10]} Re8 {[%emt 0:02:05]} 14. Ng4 {[%emt 0:01:02]} a4 {[%emt 0:03:12]} 15. a3 {[%emt 0:00:10]} bxa3 {[%emt 0:04:20]} 16. bxa3 {[%emt 0:00:02]} Bf8 {[%emt 0:02:26]} 17. Bf4 {[%emt 0:02:49]} Nd4 {[%emt 0:07:46]} 18. c4 {[%emt 0:08:34]} Nb6 {[%emt 0:03:37]} 19. Rb1 {[%emt 0:13:28]} Nf5 {[%emt 0:05:33]} 20. Qc1 {[%emt 0:06:58]} Bb7 {[%emt 0:12:05]} 21. Ne3 {[%emt 0:07:05]} Nxe3 {[%emt 0:02:29]} 22. Rxe3 {[%emt 0:00:25]} Rb8 {[%emt 0:02:12]} 23. Nh2 {[%emt 0:09:22]} Qc7 {[%emt 0:03:33]} 24. Ng4 {[%emt 0:06:59]} Red8 {[%emt 0:00:15]} 25. Re1 {[%emt 0:02:07]} dxc4 {[%emt 0:02:34]} 26. Bxb7 {[%emt 0:00:01]} Qxb7 {[%emt 0:00:30]} 27. dxc4 {[%emt 0:04:32]} Qf3 {[%emt 0:00:11]} 28. Nh2 {[%emt 0:04:01]} Qd3 {[%emt 0:01:31]} 29. Re3 {[%emt 0:02:25]} Qxc4 {[%emt 0:00:08]} 30. Rc3 {[%emt 0:00:03]} Qa6 {[%emt 0:01:28]} 31. Rf3 {[%emt 0:00:59]} Nd5 {[%emt 0:00:32]} 32. Rxb8 {[%emt 0:00:30]} Rxb8 {[%emt 0:00:04]} 33. Qc2 {[%emt 0:00:02]} c4 {[%emt 0:00:46]} 34. Ng4 {[%emt 0:00:44]} Rb3 {[%emt 0:00:16]} 35. Be3 {[%emt 0:00:01]} Qc6 {[%emt 0:02:04]} 36. Qe4 {[%emt 0:00:17]} Qb7 {[%emt 0:00:45]} 37. Bxh6 {[%emt 0:01:30]} Rxf3 {[%emt 0:00:20]} 38. Qxf3 {[%emt 0:00:06]} Qb1+ {[%emt 0:00:04]} 39. Kh2 {[%emt 0:00:21]} gxh6 {[%emt 0:00:05]} 40. Nf6+ {[%emt 0:01:02]} Nxf6 {[%emt 0:00:05]} 41. exf6 {[%emt 0:00:01]} Qf5 {[%emt 0:00:09]} 42. Qc3 {[%emt 0:00:02]} Qxh5+ {[%emt 0:00:05]} 43. Kg1 {[%emt 0:00:02]} Qd1+ {[%emt 0:00:08]} 44. Kh2 {[%emt 0:00:07]} Qd3 {[%emt 0:00:06]} 0-1

[Event "1st SOA-GM Festival 2024"]
[Site "Bhubaneswar"]
[Date "2024.02.01"]
[Round "2.13"]
[White "Barath Kalyan M"]
[Black "Ayush Sharma"]
[Result "1/2-1/2"]
[WhiteElo "2040"]
[BlackElo "2378"]
[PlyCount "94"]
[EventDate "2024.02.01"]
[EventType "swiss"]
[EventCountry "IND"]
[TimeControl "5400+30"]

1. b3 {[%emt 0:00:21]} e5 {[%emt 0:00:17]} 2. Bb2 {[%emt 0:00:05]} Nc6 {[%emt 0:00:05]} 3. c4 {[%emt 0:00:04]} Nf6 {[%emt 0:00:49]} 4. e3 {[%emt 0:00:06]} Be7 {[%emt 0:02:04]} 5. Nf3 {[%emt 0:01:14]} e4 {[%emt 0:00:07]} 6. Nd4 {[%emt 0:00:39]} O-O {[%emt 0:03:12]} 7. Be2 {[%emt 0:01:24]} d5 {[%emt 0:02:54]} 8. Nxc6 {[%emt 0:04:59]} bxc6 {[%emt 0:00:01]} 9. O-O {[%emt 0:00:15]} dxc4 {[%emt 0:03:48]} 10. Bxc4 {[%emt 0:00:25]} Bg4 {[%emt 0:00:02]} 11. Qc2 {[%emt 0:02:16]} Qd7 {[%emt 0:01:43]} 12. Nc3 {[%emt 0:07:10]} Bf3 {[%emt 0:00:51]} 13. Ne2 {[%emt 0:02:21]} Bh5 {[%emt 0:30:03]} 14. Nf4 {[%emt 0:05:10]} Bg6 {[%emt 0:00:57]} 15. Nxg6 {[%emt 0:09:11]} hxg6 {[%emt 0:00:02]} 16. d3 {[%emt 0:00:10]} exd3 {[%emt 0:01:41]} 17. Qxd3 {[%emt 0:00:41]} Qxd3 {[%emt 0:00:56]} 18. Bxd3 {[%emt 0:00:02]} Rad8 {[%emt 0:00:05]} 19. Rfd1 {[%emt 0:00:27]} Nd5 {[%emt 0:00:31]} 20. Be4 {[%emt 0:01:47]} Rd7 {[%emt 0:05:10]} 21. Rac1 {[%emt 0:02:35]} Rfd8 {[%emt 0:00:02]} 22. Bd4 {[%emt 0:16:01]} c5 {[%emt 0:02:59]} 23. Bxc5 {[%emt 0:12:14]} Nc3 {[%emt 0:00:22]} 24. Rxd7 {[%emt 0:00:11]} Rxd7 {[%emt 0:00:01]} 25. Bf3 {[%emt 0:00:33]} Nxa2 {[%emt 0:00:08]} 26. Rc2 {[%emt 0:02:05]} Nb4 {[%emt 0:00:21]} 27. Bxb4 {[%emt 0:03:00]} Bxb4 {[%emt 0:00:02]} 28. Kf1 {[%emt 0:00:29]} c5 {[%emt 0:00:54]} 29. Ke2 {[%emt 0:00:17]} g5 {[%emt 0:00:23]} 30. h3 {[%emt 0:01:13]} g6 {[%emt 0:02:26]} 31. Bc6 {[%emt 0:00:40]} Rd6 {[%emt 0:00:11]} 32. Bb5 {[%emt 0:00:16]} Kg7 {[%emt 0:00:15]} 33. g4 {[%emt 0:01:05]} Rd8 {[%emt 0:01:37]} 34. Rc1 {[%emt 0:03:13]} Rd2+ {[%emt 0:00:55]} 35. Kf3 {[%emt 0:00:43]} a5 {[%emt 0:00:17]} 36. Be2 {[%emt 0:00:53]} Rb2 {[%emt 0:00:32]} 37. Bc4 {[%emt 0:00:11]} Kf6 {[%emt 0:00:30]} 38. Rd1 {[%emt 0:02:06]} Ke7 {[%emt 0:00:05]} 39. Kg3 {[%emt 0:02:57]} Rc2 {[%emt 0:01:13]} 40. Bd5 {[%emt 0:00:47]} f5 {[%emt 0:03:12]} 41. Kf3 {[%emt 0:01:38]} Kf6 {[%emt 0:00:37]} 42. Bg8 {[%emt 0:00:23]} Bd2 {[%emt 0:01:36]} 43. Ke2 {[%emt 0:00:27]} Bb4+ {[%emt 0:00:02]} 44. Kf3 {[%emt 0:00:04]} Rb2 {[%emt 0:01:41]} 45. Bc4 {[%emt 0:01:36]} Bd2 {[%emt 0:01:21]} 46. Ke2 {[%emt 0:00:20]} Bb4+ {[%emt 0:00:07]} 47. Kf3 {[%emt 0:00:04]} Bd2 {[%emt 0:00:05]} 1/2-1/2